[Event "*** Titled Tuesday Blitz"]
[Site "Chess.com"]
[Date "2021.02.09"]
[Round "4"]
[White "MillyNeuf"]
[Black "esteban062000"]
[Result "1-0"]
[WhiteElo "2312"]
[BlackElo "2133"]
[TimeControl "180+1"]
[EndTime "10:38:43 PST"]
[Termination "MillyNeuf won by resignation"]

1. e4 {[%clk 0:03:00.9]} 1... c5 {[%clk 0:02:59]} 2. Nc3 {[%clk 0:03:00.7]} 2...
g6 {[%clk 0:02:57.2]} 3. g3 {[%clk 0:03:01]} 3... Bg7 {[%clk 0:02:56.8]} 4. Bg2
{[%clk 0:03:01.7]} 4... Nc6 {[%clk 0:02:54.5]} 5. d3 {[%clk 0:03:02.1]} 5... d6
{[%clk 0:02:52.9]} 6. Be3 {[%clk 0:03:02]} 6... a6 {[%clk 0:02:49.7]} 7. Qd2
{[%clk 0:03:01.7]} 7... Bd7 {[%clk 0:02:44.6]} 8. Nge2 {[%clk 0:03:01.6]} 8...
b5 {[%clk 0:02:41.1]} 9. Nd1 {[%clk 0:03:01.4]} 9... b4 {[%clk 0:02:36]} 10. O-O
{[%clk 0:02:55.7]} 10... e6 {[%clk 0:02:35.3]} 11. f4 {[%clk 0:02:52.7]} 11...
Nge7 {[%clk 0:02:34]} 12. h3 {[%clk 0:02:49.4]} 12... O-O {[%clk 0:02:30.8]} 13.
g4 {[%clk 0:02:43.5]} 13... f5 {[%clk 0:02:29.3]} 14. Ng3 {[%clk 0:02:42]} 14...
a5 {[%clk 0:02:27.8]} 15. Rb1 {[%clk 0:02:41.2]} 15... Qc7 {[%clk 0:02:15.9]}
16. Nf2 {[%clk 0:02:40.2]} 16... Nd4 {[%clk 0:02:12.4]} 17. h4 {[%clk 0:02:33]}
17... Rac8 {[%clk 0:02:07.4]} 18. c3 {[%clk 0:02:26.9]} 18... Ndc6 {[%clk
0:02:00.9]} 19. h5 {[%clk 0:02:23.9]} 19... d5 {[%clk 0:01:48]} 20. e5 {[%clk
0:02:13.2]} 20... d4 {[%clk 0:01:43.2]} 21. hxg6 {[%clk 0:01:58]} 21... hxg6
{[%clk 0:01:43.1]} 22. gxf5 {[%clk 0:01:57.2]} 22... dxe3 {[%clk 0:01:34]} 23.
Qxe3 {[%clk 0:01:58.1]} 23... gxf5 {[%clk 0:01:18.8]} 24. Nh5 {[%clk 0:01:58]}
24... Ng6 {[%clk 0:01:08.9]} 25. Qg3 {[%clk 0:01:56.9]} 25... Be8 {[%clk
0:01:08]} 26. Nh3 {[%clk 0:01:52.7]} 26... Qe7 {[%clk 0:00:59.2]} 27. Ng5 {[%clk
0:01:50.7]} 27... Nd8 {[%clk 0:00:53.7]} 28. Kf2 {[%clk 0:01:39.6]} 28... Nf7
{[%clk 0:00:52.8]} 29. Nf3 {[%clk 0:01:23.4]} 29... Nh6 {[%clk 0:00:49.3]} 30.
Bh3 {[%clk 0:01:20]} 30... Rd8 {[%clk 0:00:28.2]} 31. Ke2 {[%clk 0:01:16.3]}
31... c4 {[%clk 0:00:18.5]} 32. d4 {[%clk 0:01:15.9]} 32... bxc3 {[%clk
0:00:18.8]} 33. bxc3 {[%clk 0:01:16.8]} 33... Qa3 {[%clk 0:00:18.2]} 34. Ng5
{[%clk 0:00:54.6]} 34... Qxa2+ {[%clk 0:00:17.2]} 35. Ke3 {[%clk 0:00:54.9]}
35... Ng4+ {[%clk 0:00:16]} 36. Bxg4 {[%clk 0:00:53.4]} 36... fxg4 {[%clk
0:00:16.3]} 37. Nxe6 {[%clk 0:00:48.2]} 37... Qa1 {[%clk 0:00:15.9]} 38. Rxa1
{[%clk 0:00:46.3]} 1-0

[Event "*** Titled Tuesday Blitz"]
[Site "Chess.com"]
[Date "2021.02.09"]
[Round "4"]
[White "SKLGgonkom"]
[Black "markowskitomasz"]
[Result "1-0"]
[WhiteElo "2351"]
[BlackElo "2596"]
[TimeControl "180+1"]
[EndTime "10:38:45 PST"]
[Termination "SKLGgonkom won by checkmate"]

1. Nf3 {[%clk 0:03:00.9]} 1... c5 {[%clk 0:02:59.3]} 2. c4 {[%clk 0:03:00.1]}
2... g6 {[%clk 0:02:59.1]} 3. e4 {[%clk 0:02:52]} 3... Bg7 {[%clk 0:02:56.7]} 4.
d4 {[%clk 0:02:52.4]} 4... d6 {[%clk 0:02:55.6]} 5. dxc5 {[%clk 0:02:26]} 5...
dxc5 {[%clk 0:02:53.7]} 6. Qxd8+ {[%clk 0:02:21.7]} 6... Kxd8 {[%clk 0:02:54.6]}
7. Nc3 {[%clk 0:02:10.3]} 7... Nc6 {[%clk 0:02:51.7]} 8. Be3 {[%clk 0:02:05]}
8... b6 {[%clk 0:02:48.8]} 9. O-O-O+ {[%clk 0:02:04.5]} 9... Kc7 {[%clk
0:02:48.2]} 10. Ng5 {[%clk 0:01:37.9]} 10... Nh6 {[%clk 0:02:44.3]} 11. f4
{[%clk 0:01:28.7]} 11... Bg4 {[%clk 0:02:38.8]} 12. Rd2 {[%clk 0:01:12.9]} 12...
f6 {[%clk 0:02:08.2]} 13. h3 {[%clk 0:01:04]} 13... fxg5 {[%clk 0:01:35.3]} 14.
hxg4 {[%clk 0:01:02.9]} 14... Nxg4 {[%clk 0:01:31.1]} 15. Nd5+ {[%clk
0:00:53.8]} 15... Kb7 {[%clk 0:01:30]} 16. fxg5 {[%clk 0:00:44.7]} 16... e6
{[%clk 0:01:01.4]} 17. Be2 {[%clk 0:00:34.7]} 17... exd5 {[%clk 0:00:47.3]} 18.
Bxg4 {[%clk 0:00:34.5]} 18... d4 {[%clk 0:00:45.3]} 19. Bf4 {[%clk 0:00:34.4]}
19... Be5 {[%clk 0:00:44.9]} 20. g3 {[%clk 0:00:32.6]} 20... Raf8 {[%clk
0:00:44.1]} 21. Rdh2 {[%clk 0:00:31.1]} 21... Bxf4+ {[%clk 0:00:33.7]} 22. gxf4
{[%clk 0:00:30.6]} 22... Rxf4 {[%clk 0:00:34.6]} 23. Rxh7+ {[%clk 0:00:30.9]}
23... Rxh7 {[%clk 0:00:34.1]} 24. Rxh7+ {[%clk 0:00:31.8]} 24... Ka6 {[%clk
0:00:30.8]} 25. Bd7 {[%clk 0:00:26.5]} 25... Ne5 {[%clk 0:00:14.4]} 26. Bb5+
{[%clk 0:00:22.1]} 26... Ka5 {[%clk 0:00:13.9]} 27. Rxa7+ {[%clk 0:00:22.4]}
27... Kb4 {[%clk 0:00:14.5]} 28. Ra4# {[%clk 0:00:22.9]} 1-0

[Event "*** Titled Tuesday Blitz"]
[Site "Chess.com"]
[Date "2021.02.09"]
[Round "4"]
[White "CrushingKings"]
[Black "googlegoom"]
[Result "1-0"]
[WhiteElo "2422"]
[BlackElo "2540"]
[TimeControl "180+1"]
[EndTime "10:38:46 PST"]
[Termination "CrushingKings won by resignation"]

1. e4 {[%clk 0:02:57.8]} 1... c5 {[%clk 0:03:00]} 2. d4 {[%clk 0:02:56.4]} 2...
cxd4 {[%clk 0:02:59.5]} 3. c3 {[%clk 0:02:56.8]} 3... Nf6 {[%clk 0:03:00.1]} 4.
e5 {[%clk 0:02:56.2]} 4... Nd5 {[%clk 0:03:00.7]} 5. Nf3 {[%clk 0:02:56.5]} 5...
Nc6 {[%clk 0:03:01.1]} 6. Bc4 {[%clk 0:02:56.6]} 6... Nb6 {[%clk 0:03:00.3]} 7.
Bb3 {[%clk 0:02:54.1]} 7... d5 {[%clk 0:03:00.9]} 8. exd6 {[%clk 0:02:42.8]}
8... Qxd6 {[%clk 0:03:01.2]} 9. O-O {[%clk 0:02:41.2]} 9... Be6 {[%clk
0:03:01.7]} 10. Na3 {[%clk 0:02:38.8]} 10... dxc3 {[%clk 0:03:00.3]} 11. Qe2
{[%clk 0:02:36]} 11... Bxb3 {[%clk 0:02:58.7]} 12. Nb5 {[%clk 0:02:32.7]} 12...
Qb8 {[%clk 0:02:59.2]} 13. axb3 {[%clk 0:02:31]} 13... e5 {[%clk 0:02:59]} 14.
bxc3 {[%clk 0:02:16.5]} 14... f6 {[%clk 0:02:58.1]} 15. Nh4 {[%clk 0:01:37.1]}
15... g6 {[%clk 0:02:46.6]} 16. f4 {[%clk 0:01:34.7]} 16... Be7 {[%clk
0:02:24.4]} 17. f5 {[%clk 0:01:27]} 17... Kf7 {[%clk 0:01:47.3]} 18. fxg6+
{[%clk 0:01:03.5]} 18... hxg6 {[%clk 0:01:47]} 19. Qg4 {[%clk 0:00:49.2]} 19...
Rg8 {[%clk 0:01:27.4]} 20. Nf3 {[%clk 0:00:45.4]} 20... f5 {[%clk 0:01:13.1]}
21. Ng5+ {[%clk 0:00:32.2]} 21... Bxg5 {[%clk 0:01:12.3]} 22. Bxg5 {[%clk
0:00:31]} 22... Ne7 {[%clk 0:00:19.6]} 23. Bxe7 {[%clk 0:00:20.1]} 23... Kxe7
{[%clk 0:00:19.7]} 24. Qg5+ {[%clk 0:00:19.9]} 24... Kf7 {[%clk 0:00:19]} 25.
Rad1 {[%clk 0:00:16.6]} 25... Qe8 {[%clk 0:00:15.7]} 26. Nd6+ {[%clk 0:00:15.7]}
1-0

[Event "*** Titled Tuesday Blitz"]
[Site "Chess.com"]
[Date "2021.02.09"]
[Round "4"]
[White "Vamostodorecto"]
[Black "Grineva_Marianna"]
[Result "1-0"]
[WhiteElo "2415"]
[BlackElo "2201"]
[TimeControl "180+1"]
[EndTime "10:38:46 PST"]
[Termination "Vamostodorecto won by checkmate"]

1. d4 {[%clk 0:02:52.4]} 1... d5 {[%clk 0:02:57.1]} 2. c4 {[%clk 0:02:53.3]}
2... e6 {[%clk 0:02:57.1]} 3. Nc3 {[%clk 0:02:52.7]} 3... c6 {[%clk 0:02:57.3]}
4. e4 {[%clk 0:02:52.2]} 4... dxe4 {[%clk 0:02:54.5]} 5. Nxe4 {[%clk 0:02:53.1]}
5... Nf6 {[%clk 0:02:48.6]} 6. Nxf6+ {[%clk 0:02:52.3]} 6... gxf6 {[%clk
0:02:49.5]} 7. Nf3 {[%clk 0:02:52.5]} 7... Bd6 {[%clk 0:02:46.5]} 8. Bd3 {[%clk
0:02:51.7]} 8... Nd7 {[%clk 0:02:38.8]} 9. O-O {[%clk 0:02:50.8]} 9... Nf8
{[%clk 0:02:36.8]} 10. Re1 {[%clk 0:02:34.7]} 10... Ng6 {[%clk 0:02:13.9]} 11.
d5 {[%clk 0:02:17.4]} 11... O-O {[%clk 0:02:03.9]} 12. h4 {[%clk 0:02:14.1]}
12... cxd5 {[%clk 0:02:00.9]} 13. cxd5 {[%clk 0:02:11.6]} 13... Nf4 {[%clk
0:01:57.5]} 14. Bxf4 {[%clk 0:02:03.8]} 14... Bxf4 {[%clk 0:01:55.6]} 15. Nd4
{[%clk 0:01:57]} 15... Be5 {[%clk 0:01:39.5]} 16. Qh5 {[%clk 0:01:50.3]} 16...
Re8 {[%clk 0:01:27.7]} 17. Qxh7+ {[%clk 0:01:32.9]} 17... Kf8 {[%clk 0:01:27.5]}
18. Nf3 {[%clk 0:01:01.4]} 18... Qxd5 {[%clk 0:01:20.5]} 19. Rad1 {[%clk
0:00:35.1]} 19... Qa5 {[%clk 0:01:10.4]} 20. Rxe5 {[%clk 0:00:20.6]} 20... fxe5
{[%clk 0:01:08.8]} 21. Ng5 {[%clk 0:00:21.2]} 21... Qc7 {[%clk 0:01:00.9]} 22.
Bg6 {[%clk 0:00:21.2]} 22... b6 {[%clk 0:00:35.4]} 23. Bxf7 {[%clk 0:00:20.9]}
23... Ba6 {[%clk 0:00:28.4]} 24. Qh6+ {[%clk 0:00:19.7]} 24... Ke7 {[%clk
0:00:25]} 25. Qxe6+ {[%clk 0:00:20.1]} 25... Kf8 {[%clk 0:00:25.4]} 26. Qh6+
{[%clk 0:00:18.6]} 26... Ke7 {[%clk 0:00:25.1]} 27. Bxe8 {[%clk 0:00:15.4]}
27... Rxe8 {[%clk 0:00:18.1]} 28. Qg7# {[%clk 0:00:15.3]} 1-0

[Event "*** Titled Tuesday Blitz"]
[Site "Chess.com"]
[Date "2021.02.09"]
[Round "4"]
[White "Homino"]
[Black "2nd_life"]
[Result "1-0"]
[WhiteElo "2296"]
[BlackElo "2450"]
[TimeControl "180+1"]
[EndTime "10:38:48 PST"]
[Termination "Homino won on time"]

1. e4 {[%clk 0:03:00.9]} 1... e5 {[%clk 0:02:59.3]} 2. Nf3 {[%clk 0:03:00]} 2...
Nc6 {[%clk 0:02:58.9]} 3. Bb5 {[%clk 0:02:59.6]} 3... a6 {[%clk 0:02:57.5]} 4.
Ba4 {[%clk 0:02:59.9]} 4... Nf6 {[%clk 0:02:56.9]} 5. O-O {[%clk 0:03:00.1]}
5... Be7 {[%clk 0:02:56.4]} 6. Re1 {[%clk 0:03:00.4]} 6... b5 {[%clk 0:02:56.1]}
7. Bb3 {[%clk 0:03:00.9]} 7... d6 {[%clk 0:02:56]} 8. c3 {[%clk 0:03:01.1]} 8...
O-O {[%clk 0:02:55.5]} 9. h3 {[%clk 0:03:01.3]} 9... Bb7 {[%clk 0:02:55.2]} 10.
d3 {[%clk 0:03:00.6]} 10... Re8 {[%clk 0:02:45.6]} 11. Nbd2 {[%clk 0:03:00.1]}
11... Bf8 {[%clk 0:02:43.2]} 12. Nf1 {[%clk 0:02:59.5]} 12... Na5 {[%clk
0:02:29.9]} 13. Bc2 {[%clk 0:02:53.8]} 13... c5 {[%clk 0:02:29.7]} 14. a4 {[%clk
0:02:52]} 14... Nc6 {[%clk 0:02:19.3]} 15. Ng3 {[%clk 0:02:44.1]} 15... g6
{[%clk 0:01:55.8]} 16. Bg5 {[%clk 0:02:33.9]} 16... h6 {[%clk 0:01:49.4]} 17.
Be3 {[%clk 0:02:33.5]} 17... Bg7 {[%clk 0:01:48.3]} 18. Qd2 {[%clk 0:02:32.3]}
18... Kh7 {[%clk 0:01:47.5]} 19. Nh2 {[%clk 0:02:31.6]} 19... Qe7 {[%clk
0:01:34.8]} 20. Ng4 {[%clk 0:02:29.4]} 20... Nxg4 {[%clk 0:01:15.6]} 21. hxg4
{[%clk 0:02:30.3]} 21... Qe6 {[%clk 0:01:15.8]} 22. f3 {[%clk 0:02:26.8]} 22...
c4 {[%clk 0:00:52.8]} 23. d4 {[%clk 0:02:07.8]} 23... d5 {[%clk 0:00:42.8]} 24.
exd5 {[%clk 0:01:49.2]} 24... Qxd5 {[%clk 0:00:42.3]} 25. Be4 {[%clk 0:01:47.9]}
25... Qd7 {[%clk 0:00:39.7]} 26. d5 {[%clk 0:01:39.3]} 26... Na5 {[%clk
0:00:36.1]} 27. Rad1 {[%clk 0:01:10.6]} 27... Nb3 {[%clk 0:00:32.8]} 28. Qf2
{[%clk 0:01:07.9]} 28... Rad8 {[%clk 0:00:28.7]} 29. Nf5 {[%clk 0:01:03.7]}
29... gxf5 {[%clk 0:00:08.9]} 30. Bxf5+ {[%clk 0:01:03.1]} 30... Qxf5 {[%clk
0:00:09.1]} 31. gxf5 {[%clk 0:01:04]} 31... Rxd5 {[%clk 0:00:08.2]} 32. Qh4
{[%clk 0:00:58.9]} 32... Rd3 {[%clk 0:00:01.6]} 33. f6 {[%clk 0:00:54.9]} 33...
Bf8 {[%clk 0:00:01.3]} 34. axb5 {[%clk 0:00:48.6]} 1-0

[Event "*** Titled Tuesday Blitz"]
[Site "Chess.com"]
[Date "2021.02.09"]
[Round "4"]
[White "Mr_Sinigami"]
[Black "VALPARAISO37"]
[Result "1-0"]
[WhiteElo "2648"]
[BlackElo "2475"]
[TimeControl "180+1"]
[EndTime "10:38:51 PST"]
[Termination "Mr_Sinigami won by resignation"]

1. d4 {[%clk 0:03:00.7]} 1... Nf6 {[%clk 0:02:58.5]} 2. Nf3 {[%clk 0:02:59.8]}
2... d5 {[%clk 0:02:58]} 3. Bf4 {[%clk 0:02:59.5]} 3... c5 {[%clk 0:02:57.5]} 4.
e3 {[%clk 0:02:59.6]} 4... Nc6 {[%clk 0:02:57.6]} 5. c3 {[%clk 0:02:58.9]} 5...
Qb6 {[%clk 0:02:57.5]} 6. Qb3 {[%clk 0:02:56.7]} 6... c4 {[%clk 0:02:58]} 7. Qc2
{[%clk 0:02:57.1]} 7... Bf5 {[%clk 0:02:58.4]} 8. Qc1 {[%clk 0:02:57.4]} 8...
Nh5 {[%clk 0:02:59]} 9. Be5 {[%clk 0:02:56]} 9... f6 {[%clk 0:02:58.9]} 10. Bg3
{[%clk 0:02:51.9]} 10... e5 {[%clk 0:02:56.9]} 11. Be2 {[%clk 0:02:47.4]} 11...
Nxg3 {[%clk 0:02:55.5]} 12. hxg3 {[%clk 0:02:46.8]} 12... g5 {[%clk 0:02:51.8]}
13. dxe5 {[%clk 0:02:36.9]} 13... Nxe5 {[%clk 0:02:51.5]} 14. Nxe5 {[%clk
0:02:36.4]} 14... fxe5 {[%clk 0:02:51.7]} 15. e4 {[%clk 0:02:20.1]} 15... Bxe4
{[%clk 0:02:49.6]} 16. Qxg5 {[%clk 0:02:19.2]} 16... Bd6 {[%clk 0:02:43]} 17.
Nd2 {[%clk 0:02:11.7]} 17... Qxb2 {[%clk 0:02:39]} 18. O-O {[%clk 0:02:04]}
18... Bg6 {[%clk 0:02:33]} 19. Bh5 {[%clk 0:01:56.8]} 19... Kd7 {[%clk
0:02:29.6]} 20. Bxg6 {[%clk 0:01:47.7]} 20... hxg6 {[%clk 0:02:28.9]} 21. Rab1
{[%clk 0:01:47.2]} 21... Qxc3 {[%clk 0:02:29.4]} 22. Rxb7+ {[%clk 0:01:45.6]}
22... Kc6 {[%clk 0:02:30.1]} 23. Rg7 {[%clk 0:01:27]} 23... Rh5 {[%clk
0:02:25.8]} 24. Qg4 {[%clk 0:01:19.3]} 24... Qxd2 {[%clk 0:02:20]} 25. Qd7+
{[%clk 0:01:11.6]} 25... Kc5 {[%clk 0:02:20.5]} 26. Rxg6 {[%clk 0:01:11.4]}
26... Rah8 {[%clk 0:02:02.8]} 27. Qxa7+ {[%clk 0:01:09.2]} 27... Kb4 {[%clk
0:01:55.9]} 28. Rb1+ {[%clk 0:01:01.5]} 28... Kc3 {[%clk 0:01:52.3]} 29. Qa5+
{[%clk 0:00:59.6]} 29... Kd3 {[%clk 0:01:49.9]} 30. Qxd5+ {[%clk 0:00:58.9]}
30... Kc2 {[%clk 0:01:50]} 31. Rb2+ {[%clk 0:00:57.7]} 31... Kxb2 {[%clk
0:01:46.4]} 32. Qxd2+ {[%clk 0:00:57.2]} 32... Kb1 {[%clk 0:01:44.5]} 33. Kf1
{[%clk 0:00:53.2]} 33... Rh1+ {[%clk 0:01:37.8]} 34. Ke2 {[%clk 0:00:53.1]}
34... Rc1 {[%clk 0:01:38.2]} 35. Rxd6 {[%clk 0:00:50.8]} 35... Rb8 {[%clk
0:01:35.3]} 36. Kf3 {[%clk 0:00:44.2]} 36... Rb2 {[%clk 0:01:35.2]} 37. Qe3
{[%clk 0:00:40.1]} 37... Rcc2 {[%clk 0:01:30.6]} 38. Rd1+ {[%clk 0:00:37.7]}
38... Kxa2 {[%clk 0:01:31.3]} 39. Qa7+ {[%clk 0:00:32.1]} 39... Kb3 {[%clk
0:01:30.1]} 40. Ra1 {[%clk 0:00:31.6]} 40... Rxf2+ {[%clk 0:01:29]} 41. Qxf2
{[%clk 0:00:30.9]} 41... Rxf2+ {[%clk 0:01:29.9]} 42. Kxf2 {[%clk 0:00:31.1]}
42... c3 {[%clk 0:01:27.8]} 43. Ke3 {[%clk 0:00:30.2]} 43... Kb2 {[%clk
0:01:27.1]} 44. Rh1 {[%clk 0:00:29.4]} 44... c2 {[%clk 0:01:24.8]} 45. g4 {[%clk
0:00:29.2]} 45... c1=N {[%clk 0:01:25.7]} 46. Rxc1 {[%clk 0:00:28.7]} 46... Kb3
{[%clk 0:01:24.6]} 47. g5 {[%clk 0:00:28.5]} 47... e4 {[%clk 0:01:23.4]} 48. g6
{[%clk 0:00:28.5]} 1-0

[Event "*** Titled Tuesday Blitz"]
[Site "Chess.com"]
[Date "2021.02.09"]
[Round "4"]
[White "Michaelson_11"]
[Black "ZivkovicN"]
[Result "0-1"]
[WhiteElo "2274"]
[BlackElo "2461"]
[TimeControl "180+1"]
[EndTime "10:38:51 PST"]
[Termination "ZivkovicN won on time"]

1. e4 {[%clk 0:03:00.9]} 1... d6 {[%clk 0:02:55.2]} 2. d4 {[%clk 0:02:59.4]}
2... Nf6 {[%clk 0:02:55.2]} 3. Nc3 {[%clk 0:02:58]} 3... e5 {[%clk 0:02:55.2]}
4. Nf3 {[%clk 0:02:56.3]} 4... Nbd7 {[%clk 0:02:54.7]} 5. Bc4 {[%clk 0:02:56.1]}
5... Be7 {[%clk 0:02:49.5]} 6. O-O {[%clk 0:02:54.3]} 6... O-O {[%clk
0:02:48.4]} 7. Re1 {[%clk 0:02:52.1]} 7... c6 {[%clk 0:02:48.4]} 8. a4 {[%clk
0:02:51.7]} 8... b6 {[%clk 0:02:48.1]} 9. h3 {[%clk 0:02:47.7]} 9... a6 {[%clk
0:02:48.1]} 10. Be3 {[%clk 0:02:43.5]} 10... Bb7 {[%clk 0:02:48.1]} 11. d5
{[%clk 0:02:33.9]} 11... c5 {[%clk 0:02:43.6]} 12. Qe2 {[%clk 0:02:23.3]} 12...
Re8 {[%clk 0:02:42.6]} 13. Nh2 {[%clk 0:02:14.4]} 13... g6 {[%clk 0:02:36.8]}
14. g4 {[%clk 0:02:06]} 14... Bf8 {[%clk 0:02:19.7]} 15. Bg5 {[%clk 0:01:36.9]}
15... h6 {[%clk 0:02:16.9]} 16. Bh4 {[%clk 0:01:25]} 16... Qc7 {[%clk
0:02:12.8]} 17. Ra3 {[%clk 0:01:19.3]} 17... Nh7 {[%clk 0:02:06.9]} 18. Nd1
{[%clk 0:01:08]} 18... Bg7 {[%clk 0:01:48.7]} 19. Bg3 {[%clk 0:00:48.2]} 19...
Bc8 {[%clk 0:01:41.7]} 20. Ne3 {[%clk 0:00:20.5]} 20... Ng5 {[%clk 0:01:36.4]}
21. Ng2 {[%clk 0:00:14.3]} 21... Nxh3+ {[%clk 0:01:32.5]} 22. Kh1 {[%clk
0:00:14.7]} 22... Ng5 {[%clk 0:01:32.7]} 23. Re3 {[%clk 0:00:11.6]} 23... Qd8
{[%clk 0:01:20.6]} 24. f3 {[%clk 0:00:11]} 24... Nh7 {[%clk 0:01:17.2]} 25. Kg1
{[%clk 0:00:10.4]} 25... Bf6 {[%clk 0:01:17.4]} 26. Kf2 {[%clk 0:00:08.8]} 26...
Bg5 {[%clk 0:01:17.6]} 27. Rb3 {[%clk 0:00:07.3]} 27... Nhf6 {[%clk 0:01:17]}
28. Rh1 {[%clk 0:00:05]} 28... h5 {[%clk 0:01:17.2]} 29. gxh5 {[%clk 0:00:03.6]}
29... Nxh5 {[%clk 0:01:18.1]} 30. Nf1 {[%clk 0:00:02.8]} 30... Nxg3 {[%clk
0:01:14.8]} 31. Nxg3 {[%clk 0:00:03.7]} 31... Nf6 {[%clk 0:01:15.3]} 32. Qf1
{[%clk 0:00:03.7]} 32... Kg7 {[%clk 0:01:14.8]} 33. Qg1 {[%clk 0:00:03.2]} 33...
Rh8 {[%clk 0:01:14]} 34. Rxh8 {[%clk 0:00:03.1]} 34... Kxh8 {[%clk 0:01:14.9]}
35. Qh1+ {[%clk 0:00:02.5]} 35... Kg7 {[%clk 0:01:15.1]} 36. Qh2 {[%clk
0:00:02.5]} 36... Bd7 {[%clk 0:01:12.5]} 37. Ne2 {[%clk 0:00:02.5]} 37... b5
{[%clk 0:01:11.2]} 38. axb5 {[%clk 0:00:01]} 38... a5 {[%clk 0:01:11.7]} 39. b6
{[%clk 0:00:01.2]} 39... a4 {[%clk 0:01:11]} 40. Ra3 {[%clk 0:00:01.5]} 40...
Rb8 {[%clk 0:01:11.4]} 41. b3 {[%clk 0:00:01.7]} 41... Rxb6 {[%clk 0:01:06.8]}
42. bxa4 {[%clk 0:00:01.5]} 42... Rb4 {[%clk 0:01:07.4]} 0-1

[Event "*** Titled Tuesday Blitz"]
[Site "Chess.com"]
[Date "2021.02.09"]
[Round "4"]
[White "Khnykin_Nikolay"]
[Black "Rogarcia1"]
[Result "0-1"]
[WhiteElo "2057"]
[BlackElo "2282"]
[TimeControl "180+1"]
[EndTime "10:38:52 PST"]
[Termination "Rogarcia1 won on time"]

1. d4 {[%clk 0:03:00.9]} 1... d5 {[%clk 0:02:59.5]} 2. Nc3 {[%clk 0:02:59.8]}
2... Nf6 {[%clk 0:02:57.6]} 3. Bf4 {[%clk 0:02:59.7]} 3... c5 {[%clk 0:02:56.8]}
4. e3 {[%clk 0:02:58.4]} 4... e6 {[%clk 0:02:53.2]} 5. Nf3 {[%clk 0:02:57.8]}
5... Bd6 {[%clk 0:02:46]} 6. Bxd6 {[%clk 0:02:54]} 6... Qxd6 {[%clk 0:02:45.3]}
7. Nb5 {[%clk 0:02:52.2]} 7... Qe7 {[%clk 0:02:33.3]} 8. Nc3 {[%clk 0:02:32.9]}
8... O-O {[%clk 0:02:32.1]} 9. Be2 {[%clk 0:02:31.8]} 9... Nc6 {[%clk
0:02:27.9]} 10. O-O {[%clk 0:02:27.5]} 10... Rd8 {[%clk 0:02:26.8]} 11. Na4
{[%clk 0:02:09.6]} 11... b6 {[%clk 0:02:20.5]} 12. Bb5 {[%clk 0:02:04.9]} 12...
Bb7 {[%clk 0:02:19.8]} 13. Qe2 {[%clk 0:01:43.8]} 13... Ne4 {[%clk 0:02:07.6]}
14. Bd3 {[%clk 0:01:39]} 14... f5 {[%clk 0:02:01.9]} 15. Bxe4 {[%clk 0:01:25.7]}
15... fxe4 {[%clk 0:01:44.9]} 16. Nd2 {[%clk 0:01:13.6]} 16... cxd4 {[%clk
0:01:44.4]} 17. exd4 {[%clk 0:01:10.1]} 17... Nxd4 {[%clk 0:01:44]} 18. Qd1
{[%clk 0:00:54.7]} 18... Rac8 {[%clk 0:01:42.9]} 19. c3 {[%clk 0:00:52.2]} 19...
Nf5 {[%clk 0:01:41.4]} 20. b3 {[%clk 0:00:31.1]} 20... b5 {[%clk 0:01:35.7]} 21.
Nb2 {[%clk 0:00:30.2]} 21... Rxc3 {[%clk 0:01:35.3]} 22. Rc1 {[%clk 0:00:25.9]}
22... d4 {[%clk 0:01:29.5]} 23. Nb1 {[%clk 0:00:16.4]} 23... Rxc1 {[%clk
0:01:25.3]} 24. Qxc1 {[%clk 0:00:16.3]} 24... e3 {[%clk 0:01:22.1]} 25. fxe3
{[%clk 0:00:15.2]} 25... Qg5 {[%clk 0:01:18.4]} 26. Rf2 {[%clk 0:00:11.1]} 26...
dxe3 {[%clk 0:01:13.5]} 27. Re2 {[%clk 0:00:09.5]} 27... Nd4 {[%clk 0:01:10.9]}
28. Qf1 {[%clk 0:00:05.7]} 28... Nxe2+ {[%clk 0:01:07.7]} 29. Qxe2 {[%clk
0:00:05.7]} 29... Be4 {[%clk 0:00:49.7]} 30. Nc3 {[%clk 0:00:02.2]} 30... Rd2
{[%clk 0:00:47.3]} 0-1

[Event "*** Titled Tuesday Blitz"]
[Site "Chess.com"]
[Date "2021.02.09"]
[Round "4"]
[White "publicaccountcze"]
[Black "onetowin"]
[Result "0-1"]
[WhiteElo "2250"]
[BlackElo "2015"]
[TimeControl "180+1"]
[EndTime "10:38:53 PST"]
[Termination "onetowin won on time"]

1. d4 {[%clk 0:03:00.9]} 1... b6 {[%clk 0:02:59.4]} 2. c4 {[%clk 0:02:59.5]}
2... Bb7 {[%clk 0:03:00.3]} 3. Nc3 {[%clk 0:02:59]} 3... e6 {[%clk 0:03:00.9]}
4. e4 {[%clk 0:02:56.1]} 4... Bb4 {[%clk 0:03:00.3]} 5. Qc2 {[%clk 0:02:54.6]}
5... f5 {[%clk 0:02:21.1]} 6. exf5 {[%clk 0:02:50.3]} 6... Nf6 {[%clk
0:02:21.2]} 7. fxe6 {[%clk 0:02:29.6]} 7... O-O {[%clk 0:02:20.6]} 8. Ne2 {[%clk
0:02:12.8]} 8... Ne4 {[%clk 0:02:19.8]} 9. Bd2 {[%clk 0:02:05.6]} 9... Nxf2
{[%clk 0:02:12.3]} 10. Rg1 {[%clk 0:01:57.7]} 10... Qh4 {[%clk 0:02:05.3]} 11.
g3 {[%clk 0:01:55.1]} 11... Qxh2 {[%clk 0:02:03.3]} 12. Rg2 {[%clk 0:01:55]}
12... Bxg2 {[%clk 0:02:01.2]} 13. Bxg2 {[%clk 0:01:32.7]} 13... Qxg2 {[%clk
0:01:52.1]} 14. Bf4 {[%clk 0:01:18]} 14... Qf3 {[%clk 0:01:36.7]} 15. a3 {[%clk
0:01:07.1]} 15... Nd3+ {[%clk 0:01:25.1]} 16. Kd2 {[%clk 0:01:04.6]} 16... Bxc3+
{[%clk 0:01:25]} 17. Qxc3 {[%clk 0:00:59.4]} 17... Qe4 {[%clk 0:00:57.5]} 18.
Qxd3 {[%clk 0:00:56.8]} 18... Qxd3+ {[%clk 0:00:57]} 19. Kxd3 {[%clk 0:00:56.3]}
19... dxe6 {[%clk 0:00:57.9]} 20. Bxc7 {[%clk 0:00:55.9]} 20... Nc6 {[%clk
0:00:56.5]} 21. Bf4 {[%clk 0:00:45.9]} 21... Rad8 {[%clk 0:00:54.4]} 22. Ke4
{[%clk 0:00:44.8]} 22... h6 {[%clk 0:00:52]} 23. b4 {[%clk 0:00:38.6]} 23... g5
{[%clk 0:00:51.7]} 24. Be3 {[%clk 0:00:35.7]} 24... Ne7 {[%clk 0:00:51]} 25. c5
{[%clk 0:00:26.5]} 25... Nf5 {[%clk 0:00:50.1]} 26. Rh1 {[%clk 0:00:11.8]} 26...
bxc5 {[%clk 0:00:45.5]} 27. dxc5 {[%clk 0:00:04.1]} 27... Kh7 {[%clk 0:00:44.1]}
28. Bxg5 {[%clk 0:00:02.1]} 28... Rd5 {[%clk 0:00:36.1]} 29. Bf4 {[%clk
0:00:01.5]} 29... Rfd8 {[%clk 0:00:32.2]} 0-1